Cogmind - Beta 16 @@@ ROGUE MODE // 2025.11.15 @ 06:57:58 Player: Sir Cheese Result: Destroyed by S-10 Pest with Light Assault Rifle Performance ------------- Evolutions (0) 0 Regions Visited (2) 400 Robots Destroyed (19) 95 Value Destroyed (397) 397 Prototype IDs (0) 0 Alien Tech Used (0) 0 Bonus (0) 0 TOTAL SCORE: 892 Bonus ------- None Cogmind --------- Core Integrity 0/250 Matter 244/300 Energy 160/160 System Corruption 0% Temperature Cool (0) Movement Core (450) Ox8 Location -10/Mines Parts ------- > --- POWER (1) -------- Light Nuclear Core > --- PROPULSION (2) --- (None) > --- UTILITY (2) ------ Large Storage Unit Hacking Suite > --- WEAPON (2) ------- Flail > --- INVENTORY (15) --- Light Ion Engine Improved Heat Sink Improved Terrain Scanner Terrain Scan Processor Seismic Detector ECM Suite Mining Laser Peak State ------------ > --- POWER ------------ Light Nuclear Core > --- PROPULSION ------- Light Treads > --- UTILITY ---------- Large Storage Unit Hacking Suite > --- WEAPON ----------- EM Shotgun Medium Laser > --- INVENTORY -------- Light Ion Engine Improved Heat Sink Improved Terrain Scanner Terrain Scan Processor Seismic Detector ECM Suite Mining Laser Flail [Rating: 12] Favorites ----------- Power Ion Engine Engine Ion Engine Power Core Light Nuclear Core Propulsion Light Treads Treads Light Treads Utility Small Storage Unit Device Seismic Detector Storage Small Storage Unit Hackware Hacking Suite Protection Light Armor Plating Weapon Assault Rifle Energy Gun Medium Laser Ballistic Gun Assault Rifle Special Weapon Mining Laser Impact Weapon Flail Build | -11 -10 -10 ------- Run | Yrd Mat Min Slots Evolved . | . . . Power . | . . . Propulsion . | . . . Utility . | . . . Weapon . | . . . Parts Attached 19 | 7 11 1 Power 3 | 1 2 . Engine 2 | 1 1 . Core 1 | . 1 . Reactor . | . . . Propulsion 2 | 2 . . Treads 2 | 2 . . Leg . | . . . Wheel . | . . . Hover . | . . . Flight . | . . . Utility 8 | 2 6 . Device 3 | 1 2 . Storage 3 | 1 2 . Processor . | . . . Hackware 1 | . 1 . Protection 1 | . 1 . Artifact . | . . . Weapon 6 | 2 3 1 Energy Gun 2 | . 2 . Energy Cannon . | . . . Ballistic Gun 2 | 2 . . Ballistic Cannon . | . . . Launcher . | . . . Special Weapon 1 | . 1 . Impact Weapon 1 | . . 1 Slashing Weapon . | . . . Piercing Weapon . | . . . Special Melee Weapon . | . . . Unidentified Prototypes . | . . . Parts Lost 7 | . 4 3 Power . | . . . Propulsion 2 | . 1 1 Utility 2 | . 2 . Weapon 3 | . 1 2 Highest Loss Streak 3 | . 3 3 To Critical Strikes 1 | . . 1 Average Backups 6 | 1 7 7 Power . | . 1 1 Propulsion . | . . . Utility 3 | . 4 5 Weapon 2 | . 2 1 Tool/Special . | . . . Unused Backups 5 | . 2 3 Power 1 | . 1 . Propulsion . | . . . Utility 3 | . . 3 Weapon 1 | . 1 . Tool/Special . | . . . Average Slot Usage (%) 91 | . 93 81 Engine 8 | . 9 . Core 5 | . 4 14 Treads 21 | . 22 12 Device 7 | . 8 . Storage 14 | . 14 14 Hackware 4 | . 3 14 Energy Gun 15 | . 14 24 Ballistic Gun 10 | . 12 . Peak Build Rating 12 | 9 12 12 Average Rating 8 | 5 8 11 On Entrance 7 | . 9 12 Avg Prop Armor Cover (%) . | . . . Naked Turns . | . . . Heaviest Build 32 | 12 32 30 Greatest Support 40 | 40 40 20 Greatest Overweight (x) 8 | . 1 8 Average Overweight (x) . | . . 1 Largest Inventory Capacity 15 | 8 15 15 Average Capacity 11 | 7 11 15 Most Carried 10 | 4 10 8 Average Carried 6 | 1 7 7 Final Capacity 15 | 8 15 15 Final Carried 8 | 3 8 7 Class Distribution -------------------- 100% | Mutant Dominant Class ---------------- Mutant | -10/Materials Mutant | -10/Mines Resources | -11 -10 -10 ----------- Run | Yrd Mat Min Matter Collected 543 | 299 188 56 Remotely . | . . . Salvage Created 657 | 164 417 76 Parts 40 | 9 24 7 Haulers Intercepted . | . . . Recyclers Shooed . | . . . Parts Field Recycled . | . . . Retrieved Matter . | . . . Parts Self-Destructed . | . . . Prevented . | . . . Parts Restored . | . . . Kills | -11 -10 -10 ------- Run | Yrd Mat Min Combat Hostiles Destroyed 11 | . 7 4 Guns 11 | . 7 4 Classes Destroyed 7 | 2 4 1 Builder 1 | . 1 . Tunneler 3 | 3 . . Recycler 1 | 1 . . Operator 1 | . 1 . Watcher 2 | . 2 . Swarmer 4 | . . 4 Grunt 7 | . 7 . Best Kill Streak 4 | 1 4 3 Combat Bots Only 3 | . 2 3 Max Kills in Single Turn 2 | 1 1 2 Gunslinging 1 | . . 1 Exploded . | . . . Melee . | . . . Uniques/NPCs Destroyed . | . . . Combat | -11 -10 -10 -------- Run | Yrd Mat Min Hostile Shots Fired 134 | . 74 60 Missed 32 | . 21 11 Hits 102 | . 53 49 Projectile 102 | . 53 49 Critical Strikes 3 | . 1 2 Damage Taken 1096 | . 698 398 Core 252 | . 112 140 Absorbed by Shields . | . . . Core Remaining (%) 100 | 100 . . Volleys Fired 79 | 17 54 8 Largest 2 | 2 2 2 Hottest 100 | 40 100 95 Shots Fired 153 | 34 104 15 Gun 152 | 34 103 15 Cannon . | . . . Launcher . | . . . Special 1 | . 1 . Kinetic 97 | 34 63 . Thermal 47 | . 39 8 Explosive . | . . . Electromagnetic 9 | . 2 7 Robot Hit Streak 10 | 7 10 4 Robot Miss Streak 4 | 4 4 4 Penetration Max . | . . . Secondary Targets 4 | . 2 2 Max Gunslinging Chain 1 | . 1 1 Shots Hit Robots 85 | 20 57 8 Core Hits 36 | 7 22 7 Critical Kills 1 | . 1 . Critical Parts Destroyed . | . . . Critical Strikes 3 | . 3 . Burn 2 | . 2 . Destroy 1 | . 1 . Melee Attacks 1 | . . 1 Impact 1 | . . 1 Slashing . | . . . Piercing . | . . . Sneak Attacks . | . . . Combat Hostiles . | . . . Follow-up Attacks . | . . . Damage Inflicted 1069 | 221 752 96 Guns 1065 | 221 748 96 Cannons . | . . . Explosions . | . . . Melee . | . . . Ramming 4 | . 4 . Kinetic 663 | 221 442 . Thermal 338 | . 288 50 Explosive . | . . . Electromagnetic 64 | . 18 46 Impact . | . . . Slashing . | . . . Piercing . | . . . Highest Corruption . | . . . Average Corruption . | . . . Corruption Purged . | . . . Corruption Blocked . | . . . Overload Shots . | . . . Overflow Damage . | . . . Projectiles . | . . . Explosions . | . . . Melee . | . . . Knockbacks . | . . . Impact . | . . . Kinetic . | . . . Secondary . | . . . Self-Inflicted Damage . | . . . Shots . | . . . Rammed 1 | . 1 . Targets Rammed 1 | . 1 . Kicked . | . . . Crushed . | . . . Highest Temperature 274 | . 274 103 Average Temperature 80 | . 87 49 Received Heat Transfer 405 | . 405 . Effects 1 | . 1 . Energy Bleed 1 | . 1 . Siege Activations . | . . . Martial Activations . | . . . Shielding Activations . | . . . Robots Disrupted . | . . . Combat Hostiles . | . . . Robots Corrupted . | . . . Combat Hostiles . | . . . Parts Fried 1 | . . 1 Impact Corruptions . | . . . Robots Melted . | . . . Combat Hostiles . | . . . Parts Melted 3 | . 3 . Heat Transferred 1147 | . 999 148 Parts Sabotaged . | . . . Parts Stolen . | . . . Parts Stripped . | . . . Power Chain Reactions . | . . . Alert | -11 -10 -10 ------- Run | Yrd Mat Min Maximum Alert Level . | . . . Low Security (%) 100 | 100 100 100 Level 1 . | . . . Level 2 . | . . . Level 3 . | . . . Level 4 . | . . . Level 5 . | . . . High Security . | . . . Max Security . | . . . Peak Influence 70 | 5 65 70 Initial . | . . . Average 12 | . 11 32 Influence Increases 333 | 20 213 100 Destroy 0b10 Robot/C 220 | . 140 80 Destroy 0b10 Robot/NC 40 | 20 20 . Destroy Leader 64 | . 44 20 Successful Hack 7 | . 7 . Destroy Structure 2 | . 2 . Influence Decreases 333 | 20 213 100 Time Decay 273 | 20 183 70 Lost Part 60 | . 30 30 Squads Dispatched 1 | . 1 . Investigation . | . . . Extermination . | . . . Reinforcement 1 | . 1 . Assault . | . . . Garrison . | . . . Intercept . | . . . Searches Triggered . | . . . Construction Impeded . | . . . Haulers Reinforced . | . . . Active Scanning Responses . | . . . Cargo Convoy Interrupts . | . . . Stealth | -11 -10 -10 --------- Run | Yrd Mat Min Distress Signals 2 | . 2 . Communications Jammed . | . . . Distress Signals . | . . . Times Spotted 21 | . 15 6 Peak Tracking Total 5 | . 5 3 Tactical Retreats . | . . . Traps | -11 -10 -10 ------- Run | Yrd Mat Min Traps Triggered . | . . . Indirectly . | . . . Trap Hack Attempts . | . . . Triggered . | . . . Disarmed . | . . . Reprogrammed . | . . . Reused . | . . . Traps Extracted . | . . . Installed . | . . . Triggered . | . . . Machines | -11 -10 -10 ---------- Run | Yrd Mat Min Machines Disabled . | . . . Max in Single Turn . | . . . Machines Repaired . | . . . Machines Dismantled . | . . . Machines Sabotaged . | . . . Overloaded Fab Kills . | . . . Hacking | -11 -10 -10 --------- Run | Yrd Mat Min Machines Accessed 4 | . 4 . Terminals 3 | . 3 . Fabricators . | . . . Repair Stations . | . . . Recycling Units 1 | . 1 . Scanalyzers . | . . . Garrison Access . | . . . Total Hacks 11 | . 11 . Successful 4 | . 4 . Failed 7 | . 7 . Catastrophic 2 | . 2 . Database Lockouts . | . . . Manual 2 | . 2 . Terminals 9 | . 9 . Fabricators . | . . . Repair Stations . | . . . Recycling Units 2 | . 2 . Scanalyzers . | . . . Garrison Access . | . . . Terminal Hacks 2 | . 2 . Branch Access Points 1 | . 1 . Hauler Manifests 1 | . 1 . Fabricator Hacks . | . . . Repair Station Hacks . | . . . Recycling Unit Hacks 2 | . 2 . Report Inventory 1 | . 1 . Retrieve Components 1 | . 1 . Scanalyzer . | . . . Garrison Access Hacks . | . . . Unauthorized Hacks . | . . . Terminals . | . . . Fabricators . | . . . Repair Stations . | . . . Recycling Units . | . . . Scanalyzers . | . . . Garrison Access . | . . . Data Cores Recovered . | . . . Used . | . . . Hacking Detections 4 | . 4 . Full Trace Events . | . . . Feedback Events . | . . . Feedback Blocked . | . . . Robot Schematics Acquired . | . . . Robots Built . | . . . Authchips . | . . . Time . | . . . Total Robot Build Rating . | . . . Part Schematics Acquired . | . . . Parts Built . | . . . Authchips . | . . . Time . | . . . Total Part Build Rating . | . . . Part Studies Acquired . | . . . Parts Repaired . | . . . Time . | . . . Parts Recycled . | . . . Recycled Matter . | . . . Retrieved Matter . | . . . Retrieved Components 3 | . 3 . Parts Scanalyzed . | . . . Part Schematics Acquired . | . . . Parts Damaged . | . . . Bothacking | -11 -10 -10 ------------ Run | Yrd Mat Min Used RIF Installer . | . . . Robots Hacked . | . . . Non-combat . | . . . Combat . | . . . Robot Hacks Applied . | . . . Relay Couplers Released . | . . . Fabnet Peak Effective % . | . . . Robots Rewired . | . . . Allies Hacked . | . . . Hacks Repelled . | . . . Allies | -11 -10 -10 -------- Run | Yrd Mat Min Total Allies . | . . . Largest Group . | . . . Highest-Rated Group . | . . . Highest-Rated Ally . | . . . Total Orders . | . . . Ally Attacks . | . . . Total Damage . | . . . Kills . | . . . Allies Corrupted . | . . . Allies Melted . | . . . Intel | -11 -10 -10 ------- Run | Yrd Mat Min Active Infowar (turns) 633 | 22 611 . Terrain 22 | 22 . . Structural 49 | . 49 . Seismic 562 | . 562 . Robot Analysis Total . | . . . Derelict Logs Recovered . | . . . Drone Launches . | . . . Drone Recoveries . | . . . Exploration | -11 -10 -10 ------------- Run | Yrd Mat Min Turns Passed 1367 | 251 963 153 Spaces Moved 583 | 120 414 49 Core 8 | 4 . 4 Treads 575 | 116 414 45 Legs . | . . . Wheels . | . . . Hover . | . . . Flight . | . . . Fastest Speed 50 | 50 160 240 Average Speed 186 | 156 187 257 Slowest Speed 450 | 160 240 450 Overloaded Moves . | . . . Propulsion Burnouts . | . . . Robots Hopped . | . . . Potential Cave-ins . | . . . Cave-ins Triggered . | . . . Exploration Rate (%) 27 | 9 56 18 Regions Visited 2 Branch Regions 1 Pre-discovered Areas . | . . . Known Exits Taken 1 | . 1 . Unknown Exits Taken 1 | 1 . . Scrap Searched . | . . . Spaces Dug 1 | . 1 . Terrain Destroyed 1 | . 1 . Melee . | . . . Projectile 1 | . 1 . AOE . | . . . Terrain Rammed . | . . . Walls Destroyed . | . . . Machines Disabled . | . . . Actions | -11 -10 -10 --------- Run | Yrd Mat Min Total 711 | 153 499 59 Wait . | . . . Move 581 | 119 413 49 Hop . | . . . Pick Up 22 | 10 12 . Fast Attach 1 | . 1 . Attach 11 | 7 3 1 Detach . | . . . Swap 9 | . 9 . Drop 6 | . 6 . Fire 79 | 17 54 8 Melee 1 | . . 1 Ram . | . . . Kick . | . . . Crush 1 | . 1 . Escape Stasis . | . . . Rewire . | . . . Trap . | . . . Miscellaneous . | . . . Route ------- -11/Scrapyard -10/Materials (discovered 5 exits: [*Mat x3] / *Min x2) -10/Mines History --------- Turn | Location | Event 6 | -11/Scrapyard | Discovered new exit (range 16) 252 | -11/Scrapyard | Entered Materials 311 | -10/Materials | Build established: Mutant 378 | -10/Materials | Discovered new exit (range 8) 416 | -10/Materials | Discovered new exit (range 6) 552 | -10/Materials | Identified exit to Mines 900 | -10/Materials | Lost 3 parts (1n1u1w) 911 | -10/Materials | Discovered new exit (range 12) 971 | -10/Materials | Discovered new exit (range 16) 1215 | -10/Materials | Entered Mines 1239 | -10/Mines | Met a Derelict bent on vengeance 1338 | -10/Mines | Core integrity fell below 50% 1359 | -10/Mines | Core integrity fell below 20% 1368 | -10/Mines | Destroyed by S-10 Pest with Light Assault Rifle Last Messages --------------- R-06 Scavenger inserts Welding Torch into recycling unit. LOCATION=MINES GOAL=ESCAPE S-10 Pest destroyed. Flight Unit fried. S-10 Pest destroyed. Switching to secondary target: S-10 Pest. S-10 Pest destroyed. Acquired 18 matter. Acquired 20 matter. Acquired 18 matter. S-10 Pest destroyed. Switching to secondary target: S-10 Pest. K-01 Serf collects debris. EM Shotgun destroyed. Critical hit (Destroy). Lgt. Treads destroyed. Med. Laser destroyed. R-06 Scavenger collects Flight Unit. Map ----- +----------------------------------------------------+ | ?????????????????????????????????????????????????? | | ?????????????????????????????????????????????????? | | ?????????????????????????????????????????????????? | | ?????????????????????????????????????????????????? | | ?????????????????????????????????????????????????? | | ?????????????????????????????????????????????????? | | ?????????????????????????????????????????????????? | | ?????????????????????????????????????????????????? | | ?????????????????????????????????????????????????? | | ?????????????????????????????????????????????????? | | ?????????????????????????????????????????????????? | | ?????????????????????????????????????????????????? | | #############????????????????????????????????????? | | # * = #????????????????????????????????????? | | # = #??????#?????????????????????????????? | | # * #?????# ?####????????????????????????? | | # ###### ?? ##??????????????????????? | | # """ # ?? ## ????????????????????? | | # """ #? ??? ?????????????????????? | | # """ #? ???? ?????????????????????? | | # #?? ????r ??????????????????????? | | ###### ######?? ????# ??????????????????????? | | ?????# #???????# #????# #??????????????????????? | | ###### ###?????# #????# #??????????????????????? | | # ####### #????#ss#??????????????????????? | | # """" ##???#%@#??????????????????????? | | # """" ####### ##?##[ ##?????????????????????? | | # """" #?##### ### #?????????????????????? | | # #?# ##????????????????????? | | ###### ###?# ### ####?????????????????? | | ?????# ##### #?# #?????????????????? | | ?????# #?## ### #????????????????? | | ?????#########??## ##?## #????????????? | | ?????????????????#####????# #????????????? | | ???????????????????????????# #####????????????? | | ????????????????????????????# ##????????????????? | | ?????????????????????????????###?????????????????? | | ?????????????????????????????????????????????????? | | ?????????????????????????????????????????????????? | | ?????????????????????????????????????????????????? | | ?????????????????????????????????????????????????? | | ?????????????????????????????????????????????????? | | | | | | | | | | | | | | | | | +----------------------------------------------------+ Best States ------------- Heat Dissipation 25 Energy Generation 14 Energy Capacity 250 Matter Stores 300 Matter Capacity 300 Sight Range 16 Terrain Scan Range 16 Terrain Scan Density 10 Armor Coverage 150 Evasion (%) 40 Recoil Reduction 2 Offensive Hacking 10 Item Schematics ----------------- None Robot Schematics ------------------ None Fabricated ------------ Nothing Repaired ---------- Nothing Studied --------- None Alien Tech Used ----------------- None Achievements -------------- None Challenges ------------ None Game ------ Seed VoltaicWardroneDetector Manual? 0 Play Time 00:10:15 Cumulative 34.5 hours Start 2025.11.15 @ 06:48:26 End 2025.11.15 @ 06:57:58 Sessions 1 Manual Loads 0 Difficulty Rogue Special Mode None Game No. 30 Rogue 2 Adventurer 21 Explorer 7 Win Type - Total 1 Types 1/0/0/0/0/0/0/0/0/0 Lore% 35 Gallery% 37 Achievement% 31 Wizard Run 0 Options --------- Layout 1 ASCII 0 Keyboard 0 Movement Mouse Keybinds 0 Fullscreen 1 Font 48/Smallcaps Map View 50x35 Zoom Use 0% Tactical HUD 0 Map Filters NONE Filters NONE Steam 1 RUN: 36f8ac34-f035-4aa2-aa34-48d48582fc4a